{"text_format":"1","workbook":"xlsx","n_sheets":5,"sheets":["Instructions","Project_Cover_Page","Project_Worksheet","HVAC_System","Diagnostic_Test_Results"],"not_rendered":{"charts":0,"images":6,"macros":1,"external_links":1,"defined_names":6,"comments":0,"pivot_tables":0},"unopened":[],"bounds":{"document_bytes":16777216,"sheet_cells":100000,"rows_first":2000,"rows_last":500,"rows_between":2000,"halvings":0,"cell_chars":16384,"cell_head_chars":4096},"cells_cut":0,"cells_raw":0,"read":"whole","date_system":"1900"}

{"sheet":"Instructions","index":0,"n_rows":34,"n_cols":5,"rows_kept":34,"cut":false,"hidden":false,"merged":[[33,2,33,9],[2,4,2,9],[21,3,21,9],[23,3,23,9],[25,3,25,9],[27,3,27,9],[29,2,29,9],[31,2,31,9],[5,1,5,9],[7,1,7,9],[11,2,11,9],[13,2,13,9],[15,2,15,9],[17,2,17,9]]}
[]
[]
[null,null,null,null,"EarthCraft House Instruction Guide"]
[]
[]
[null,"The EarthCraft House worksheet is intended to be used by Technical Advisors as they guide projects through the EarthCraft House certification process."]
[]
[null,"This worksheet is divided into tabs, with each tab serving to assist a Technical Advisor as they complete design reviews, inspections, and verifications for an EarthCraft House project."]
[]
[null,"The following is an explanation of each tab:"]
[]
[null,"•","Project Cover Page: Provide information about the project location, design and construction team.  Projects seeking Certification Badges shall select the appropriate check box to confirm each Badge that wil be achieved. "]
[]
[null,"•","Project Worksheet: Shows a complete list of all the program requirements a project must complete in order to obtain EarthCraft House certification, plus any additional Certification Badges the project chooses to seek.  This tab serves as the final summary of all items verified by the Technical Advisor."]
[]
[null,"•","HVAC System:  Allows Technical Advisors to verify HVAC design requirements for the EarthCraft program.  This tab includes whole-building ventilation calculations and allows the design team to select intermittent ventilation systems."]
[]
[null,"•","Final Diagnostic Testing:  Includes final diagnostic testing forms for building infiltration, duct leakage, and ventilation testing. "]
[]
[null,"•","The following verification codes are used in the EarthCraft House worksheet:"]
[]
[null,null,"Y","Where \"Y\" or \"Yes\" indicates that a Technical Advisor has verified that a requirement has been met through visual assessment, diagnostic testing, and/or documentation review.  "]
[]
[null,null,"AD","Where \"AD\" indicates that a Technical Advisor has attempted to verify that a requirement has been met but requires additional documentation before they can fully verify that the requirement has been met."]
[]
[null,null,"N/A","Where \"N/A\" or \"NA\" indicates that a requirement is not applicable to a project based on the project design.  "]
[]
[null,null,"N","Where \"N\" indicates that a Technical Advisor has completed a visual inspection, diagnostic test, and/or documentation review and has determined that a re-inspection of the requirement is necessary.  Projects will not be granted certification and/or any Certification Badge that has a RI listed next to any requirement.  "]
[]
[null,null,"Technical Advisors are required to maintain documentation on how they verified each program and/or Certification Badge requirement. "]
[]
[null,"•","Once all requirements have been verified in the Project Worksheet, HVAC System and Diagnostic Test Results.  The Project Worksheet tab will serve as the summary for EarthCraft that the project has meet all program and/or certification badge requirements, or that requirements are not applicable to the project based on design and construction. "]
[]
[null,"•","Once a Technical Advisor has completed all verification work and is ready to submit a project for certification they will need to print the Project Overview and obtain the EarthCraft Builder's signature verifying that the builder understands and agrees that the project is complete.  Once the Technical Advisor and EarthCraft Builder have signed off on the Project Cover Page the competed EarthCraft worksheet and a copy of the signed Project Cover Page should be submitted to EarthCraft."]

{"sheet":"Project_Cover_Page","index":1,"n_rows":74,"n_cols":11,"rows_kept":74,"cut":false,"hidden":false,"merged":[[72,0,72,4],[72,6,72,10],[67,0,67,10],[68,0,68,4],[68,6,68,10],[70,0,70,4],[70,6,70,10],[58,0,58,10],[59,0,59,10],[61,0,61,10],[63,0,63,10],[65,0,65,10],[51,0,51,10],[52,0,52,10],[53,0,53,10],[54,0,54,10],[56,0,56,10],[22,3,22,5],[28,3,28,5],[32,3,32,5],[19,1,20,6],[48,0,48,10],[46,0,46,10],[16,0,16,1],[16,2,16,4],[16,6,16,7],[16,8,16,10],[17,0,17,1],[17,2,17,4],[17,6,17,7],[17,8,17,10],[14,0,14,1],[14,2,14,4],[14,6,14,7],[14,8,14,10],[15,0,15,1],[15,2,15,4],[15,6,15,7],[15,8,15,10],[11,0,11,1],[11,2,11,4],[12,8,12,10],[13,2,13,4],[13,6,13,7],[13,8,13,10],[9,0,9,1],[9,2,9,4],[9,6,9,7],[9,8,9,10],[10,0,10,1],[10,2,10,4],[1,0,5,1],[1,2,2,10],[3,2,5,10],[7,0,8,1],[7,2,8,4],[7,6,8,7],[7,8,7,10],[8,8,8,9]]}
[]
[null,null,"House Address"]
[]
[null,null,"EarthCraft House Worksheet"]
[]
[]
[]
["EarthCraft Builder Company:",null,null,null,null,null,"Project Location:",null,"Street Address"]
[null,null,null,null,null,null,null,null,"City, State",null,"Zip Code"]
["Site Contact:",null,null,null,null,null,"Registration Date:",null,"MM/DD/YYYY"]
["Phone Numer:",null,"(xxx) xxx-xxxx"]
["Technical Advisor:"]
[null,null,null,null,null,null,null,null,"Building Information"]
[null,null,"Site Information",null,null,null,"Floor Area:",null,2000]
["Foundation Type:",null,null,null,null,null,"Volume:",null,20000]
["Lot Area (acres):",null,null,null,null,null,"SFBE:"]
["Irrigated Area (ft2):",null,null,null,null,null,"# Stories:",null,2]
["Impervious Area (ft2):",null,null,null,null,null,"# Bedrooms:",null,3]
[]
[null,"EarthCraft House Badges"]
[]
[]
[null,null,null,"Comfort Badge"]
[]
[null,null,null,"Environment Badge"]
[]
[null,null,null,"Electrification badge"]
[]
[null,null,null,"Health Badge"]
[]
[null,null,null,"Performance Badge"]
[]
[null,null,null,"Resiliency Badge"]
[]
[]
[]
[]
[]
[]
[]
[]
[]
[]
[]
[]
[]
["In consideration of EarthCraft House certification, this project has been evaluated based on full compliance with the following: "]
[]
["I. Submission of a field verified EarthCraft House Worksheet with all program requirements marked as Y/Yes or NA/Not Applicable, as documented by the EarthCraft Technical Advisor. Any optional program Badges have been documented and verified on the Worksheet and selected on the Cover Page."]
[]
["II. Project design and specification: "]
["A. Certified projects must comply with EarthCraft prescriptive path requirements;"]
["B. Each optional EarthCraft House Badge has its own specific requirements that must be completed in addition to the EarthCraft House prescriptive requirements;"]
["C. All projects must meet or exceed the local energy code in effect at the time of the project construction;"]
["D. All projects must submit Manual J designs and fresh air ventilation designs reaching current program standards, install heating and air and ventilation matching the submitted designs, and achieve all additional EarthCraft House program requirements; "]
[]
["III. Each project must follow the process as outlined in the EarthCraft Program Manual and EarthCraft House Technical Guidelines in order to be eligible for certification completing the following: "]
["A. An initial design review; "]
["C. All pre-drywall and final inspection requirements as outlined in the current worksheet and manual; "]
["D. Submit necessary documentation to confirm program requirements and badges tracked in the EarthCraft House Worksheet"]
[]
["IV. Any practices or elements outlined as requirements by EarthCraft, local energy code, and/or federal standards must be incorporated into non-residential areas of the project and within any stand-alone buildings (e.g. detached garage, accessory dweling unit) "]
[]
["V. Badges tracked within this worksheet must be incorporated into non-residential areas of the project and within any stand-alone buildings where applicable (e.g detached garage, accessory dwelling unit)"]
[]
["VI. Any discrepancies between code requirements, federal guidelines, or EarthCraft will result in the more stringent requirement being enforced (special consideration will be given go certain code restrictions as approved by EarthCraft) "]
[]
["Builder - By accepting the EarthCraft House certification, I pledge that this house has been constructed to the standards listed within this EarthCraft Worksheet."]
[]
["EarthCraft Builder Signature",null,null,null,null,null,"Printed Name and Date"]
[]
["EarthCraft Technical Advisor Signature",null,null,null,null,null,"Printed Name and Date"]
[]
["EarthCraft Administrator Signature",null,null,null,null,null,"Printed Name and Date"]

{"sheet":"Project_Worksheet","index":2,"n_rows":260,"n_cols":7,"rows_kept":260,"cut":false,"hidden":false,"merged":[[247,2,247,4],[121,2,121,4],[123,2,123,4],[127,1,127,4],[224,2,224,4],[99,1,99,4],[183,1,183,4],[197,1,197,4],[194,3,194,4],[195,3,195,4],[141,3,141,4],[142,3,142,4],[140,3,140,4],[107,2,107,4],[139,3,139,4],[233,1,233,4],[230,1,230,4],[132,2,132,4],[114,2,114,4],[115,2,115,4],[173,2,173,4],[219,2,219,4],[116,2,116,4],[199,1,199,4],[71,2,71,4],[79,1,79,4],[80,0,80,4],[81,1,81,4],[76,1,76,4],[74,2,74,4],[193,2,193,4],[75,2,75,4],[77,2,77,4],[78,1,78,4],[19,1,19,4],[20,2,20,4],[21,2,21,4],[22,2,22,4],[23,1,23,4],[48,3,48,4],[214,1,214,4],[217,2,217,4],[218,2,218,4],[39,3,39,4],[43,3,43,4],[44,3,44,4],[45,3,45,4],[46,3,46,4],[67,1,67,4],[24,2,24,4],[25,2,25,4],[26,2,26,4],[27,1,27,4],[53,3,53,4],[56,3,56,4],[66,1,66,4],[68,2,68,4],[69,2,69,4],[3,1,3,4],[4,1,4,4],[10,0,10,4],[11,1,11,4],[5,1,5,4],[6,1,6,4],[7,1,7,4],[8,2,8,4],[9,2,9,4],[246,6,248,6],[239,6,241,6],[234,6,238,6],[229,6,230,6],[223,6,226,6],[236,2,236,4],[57,3,57,4],[58,3,58,4],[159,3,159,4],[160,3,160,4],[170,2,170,4],[190,3,190,4],[192,3,192,4],[82,1,82,4],[93,1,93,4],[110,1,110,4],[145,1,145,4],[70,1,70,4],[189,3,189,4],[234,1,234,4],[191,2,191,4],[73,2,73,4],[72,2,72,4],[65,1,65,4],[172,6,174,6],[169,6,171,6],[165,6,168,6],[145,6,164,6],[134,6,142,6],[214,6,219,6],[207,6,213,6],[200,6,206,6],[183,6,195,6],[175,6,178,6],[103,6,109,6],[99,6,102,6],[94,6,98,6],[130,6,133,6],[124,6,126,6],[118,6,123,6],[113,6,117,6],[110,6,111,6],[82,6,92,6],[0,3,0,4],[35,6,48,6],[27,6,32,6],[23,6,26,6],[19,6,22,6],[7,6,9,6],[76,6,77,6],[70,6,75,6],[67,6,69,6],[62,6,64,6],[51,6,61,6],[12,1,12,4],[16,1,16,4],[17,1,17,4],[18,1,18,4],[50,1,50,4],[51,1,51,4],[49,0,49,4],[52,2,52,4],[55,2,55,4],[62,1,62,4],[63,2,63,4],[64,2,64,4],[2,0,2,4]]}
[null,null,null,{"$f":"Project_Cover_Page!C2","v":"House Address"}]
[null,null,null,null,null,"Verification Status","Project Notes"]
["SITE PLANNING "]
["SP  1","Do not install invasive plant species"]
["SP  2","Install and maintain a tree protection plan "]
["ENV  1","Pre-construction site assessment and remove 100% of invasive plants "]
["ENV  2","Permanent stormwater control ≥50% of onsite impervious surface areas "]
["ENV  3","Reduce irrigated area and install drought tolerant landscaping  (both, details below): "]
[null," • ","Turf ≤ 40% of landscape area"]
[null," • ","Drought-tolerant and/or native landscaping turf and plants (≥75%)"]
["RESOURCE EFFICIENCY "]
["RE  1","Minimum stud spacing: 16\" centers for 2x4 walls; 24\" centers for 2x6 walls"]
["RE  2","Size headers for loads (non-structural headers in non-load bearing walls)"]
["RE  3","Insulated corners at all exterior locations "]
["RE  4","Ladder T-walls at all exterior locations "]
["RE  5","Insulated headers for all exterior doors and windows"]
["RE  6","Energy heel truss system for all vented, unconditioned attics"]
["RE  7","If HVAC ductwork is in unconditioned attic, attic side radiant barrier"]
["RE  8","Engineered wood trim: interior and exterior ≥75%"]
["ENV  4","Advanced framing package (choose one, details below):"]
[null," • ","Deliver panelized construction or SIPs to the site pre-framed"]
[null," • ","Site framing plan with precut framing package                                                                "]
[null," • ","Optimum value engineering framing for walls, floors, and roof"]
["ENV  5","Recycled content materials (choose two, details below):"]
[null," • ","Replace ≥25% of cement in slab and/or foundation wall concrete with fly ash or slag"]
[null," • ","Install ≥50% recycled content insulation"]
[null," • ","Install ≥50% recycled content carpet on ≥50% of all carpeted floor"]
["ENV  6","Responsible waste disposal (minimum of two, must divert ≥75% of all selected):"]
[null," • ","Wood"]
[null," • ","Drywall (recycle or grind and spread onsite)"]
[null," • ","Cardboard"]
[null," • ","Plastics"]
[null," • ","Styrofoam"]
["RES  1","Include all elements of the Electrification Badge "]
["RES  2","Rooftop solar or site-specific solar panels"]
["RES  3","Incorporate Universal Design in ground-floor of building (details below):"]
[null," • ","Hallways have a net clear width of 36\""]
[null," • ","Passage doorways (interior and exterior) have a net clear opening of 32\""]
[null," • ","At least one (1) full bathroom designed with:"]
[null,null," • ","A 30” x 48” clear floor space outside the swing of the door as it closes"]
[null,null," • ","A 30” x 48” clear floor space for the sink"]
[null,null," • ","A 48” x 56” clear floor space for the toilet"]
[null,null," • ","A 30” x 48” clear floor space for the tub/shower"]
[null,null,null,"The required clear floor spaces for each fixture may overlap the clear floor spaces for other fixtures in the room. The clear area for sinks and tubs shall be free from all wall projections, tub/shower, toilet, or the sink base."]
[null,null," • ","Toilet centered a minimum of 18” from any corner wall, base cabinet, or tub. "]
[null,null," • ","The basin for cabinet style sink centered in the required clear floor space for sinks or be located 24” from any adjacent wall or tub that prevents full parallel approach."]
[null,null," • ","Wall reinforcement behind the toilet, tub and/or shower shall be equipped with properly anchored and supported grab bars or install 2” x 10” wood blocking, plywood, or other approved material for future grab bars in the toilet and tub/shower areas. The wall reinforcement shall be located 33” to 36” AFF (above finished floor)."]
[null," • ","At least one (1) building entry door with:"]
[null,null," • ","An exterior level platform with a minimum of 5’ x 5’ clear floor space. This platform must be within 1/2” of the interior finished floor at the point of entrance and a maximum threshold rise of 1-1/4” when approaching from the outside (structural and decorative supports may overlap perimeter of the clear floor space)."]
["DURABILITY & MOISTURE MANAGEMENT"]
["DU  1","Do not install wet or water-damaged building materials"]
["DU  2","Crawlspace, if designed (details below, choose A or B):"]
[null,"A.","Vented crawlspace meeting 2012 IRC and EarthCraft Insulation requirements (details below): "]
[null,null," • ","100% coverage of sealed ≥12 mil vapor barrier over exposed earth.  Vapor barrier shall extend ≥ 6\" up the stem wall and shall be attached and sealed to the stem wall."]
[null,null," • ","Spray foam insulation covering 100% of framed floor"]
[null,"B.","Unvented crawlspace meeting 2021 IRC and EarthCraft insulation requirements (details below):"]
[null,null," • ","≥R-10 continuous insulation installed in contact with foundation wall"]
[null,null," • ","Exposed earth is covered with a continuous ≥12 mil vapor barrier.  Joints of the vapor barrier shall overlap by 6\" and shall be sealed.  The edges of the vapor retarder shall extend ≥6\" up the stem wall and shall be attached and sealed to the stem wall or insulation; and"]
[null,null," • ","Mechanical conditioning is provided to unvented crawlspace area (choose one):"]
[null,null,null," • ","Continuously operated mechanical exhaust ventilation at a rate equal to 1 cubic foot per minute for each 50 square feet of crawlspace floor area, including an air pathway to the common area (such as a duct or transfer grill) and perimeter walls insulated in accordance with EarthCraft requirements "]
[null,null,null," • ","Conditioned air supply sized to deliver at a rate equal to 1 cubic foot per minute for each 50 square feet of under-floor area, including a return air pathway to the common area (such as a duct or transfer grill) and perimeter walls insulated in accordance with EarthCraft requirements in BE 6."]
[null,null,null," • ","ENERGY STAR certified dehumidifier capable of maintaining ≤60 relative humidity in crawlspace.  Dehumidifier must be equipped with a pump and drain line that terminates at the building exterior."]
["DU  3","Slabs, if designed (both, details below):"]
[null," • ","100% coverage of ≥6 mil vapor barrier beneath all slabs"]
[null," • ","Gravel bed beneath all slabs (exception: Climate Zone 2)"]
["DU  4","Bottom of foundation drain no higher than top of subgrade footing"]
["DU  5","Damp proof below-grade walls"]
["DU  6","Install drainage plane per manufacturer's specifications (both, details below):"]
[null," • ","Single lapped housewrap or taped, vapor permeable water-resistant barrier integrated with sheathing"]
[null," • ","Double layer of either building paper or housewrap behind cementitious stucco, stone veneer or synthetic stone veneer on framed walls"]
["DU  7","Flashing complies with 2021 IRC and/or manufacturer specifications (all, details below):"]
[null," • ","All exterior penetrations flashed and sealed to weather barrier prior to cladding"]
[null," • ","Window and door pan flashing installed per manufacturer specifications"]
[null," • ","Window and door side and head flashing installed per manufacturer specifications"]
[null," • ","Step and kick-out flashing at wall/roof intersections"]
[null," • ","Step flashing 4\" on wall surface and integrated with wall and roof drainage planes"]
["DU  8","Install siding per manufacturer and industry recommendations (details below):"]
[null," • ","Maintain minimum 2\" clearance between wall siding and roof surface for siding materials"]
["DU  9","Rigid, moisture-resistant backing material behind tubs and showers"]
["DU  10","Wall cavity insulation without a vapor retarder or kraft paper"]
["HIGH PERFORMANCE BUILDING ENVELOPE"]
["BE  1","At final: ≤3 ACH50 or ≤0.25 ELR"]
["BE  2","Prescriptive air sealing checklist (as applicable to design, details below):"]
[null," • ","All gaps in exterior sheathing ≥1/4\""]
[null," • ","All gaps in rim and band areas ≥1/4\""]
[null," • ","All electrical penetrations in top/bottom plates, sheathing"]
[null," • ","Cantilevered floors blocked at exterior wall, gaps ≥1/4\" sealed"]
[null," • ","All chases blocked and sealed (Ex. fireplace, tubs, under stairs, HVAC)"]
[null," • ","All plumbing penetrations"]
[null," • ","Sill and sole plates sealed to subfloor/foundation"]
[null," • ","All penetrations through subfloor/slab, framing, and drywall"]
[null," • ","Rough openings around exterior doors and windows"]
[null," • ","HVAC Boots and mechanical ventilation fan penetrations through drywall/subfloor"]
["BE  3","All recessed can lights must be airtight, gasketed and IC-rated in insulated ceilings"]
["BE  4","Insulate to meet EarthCraft requirements, based on climate zone (chart below):"]
[]
[null," • ","Exterior walls"]
[null," • ","Floors over unconditioned space"]
[null," • ","Ceiling/roof"]
["BE  5","ANSI/RESNET/ICC 301-2014 Addendum F-2018 Normative Appendix A Grade I insulation installation quality based on insulation product used (floors, walls and ceilings):                 "]
[null," • ","Exterior walls"]
[null," • ","Floors over unconditioned space"]
[null," • ","Ceiling/roof"]
["BE  6","Unconditioned attics (as applicable to design, details below):"]
[null," • ","Insulation baffles at all soffit vents, trays and attic access"]
[null," • ","Loose-fill insulation R-value certificate, and depth rulers installed 1 per 300 ft²"]
[null," • ","Platforms allow for full-depth insulation below"]
[null," • ","Attic access within conditioned space insulated to same R-value as surrounding attic"]
[null," • ","Knee walls ≥1ft tall insulated to ≥R-18 with sealed attic side air barrier"]
[null," • ","Knee walls <1ft tall fully covered to achieve same R-value as surrounding attic"]
["BE  7","Window and skylight U-factor and Solar Heat Gain Coefficient (SHGC) meets or exceeds EarthCraft standards (chart below):                                                                             "]
[]
["PERF  1","Achieve a confirmed HERS Index ≤50:"]
["PERF  2","Building envelope insulation meets or exceeds local jurisdiction requirements"]
[null," • ","Walls"]
[null," • ","Floors over unconditioned space"]
[null," • ","Ceiling/roof"]
[null," • ","Windows and doors"]
["EL  1","All-electric home with the following:"]
[null," • ","Solar-ready electrical panel"]
[null," • ","One (1) electric vehicle charging station"]
[null," • ","Electric air source heat pump or ground source heat pump HVAC systems meeting ES 2 and ES 3"]
[null," • ","Electric water heating equipment meeting PI 1"]
[null," • ","No utility gas line service for any secondary appliances (fireplaces, outdoor cooking, etc.)"]
["EL  2","Solar ready building design and construction"]
[null," • ","Solar orientation optimization of roof "]
[null," • ","Rooftop constructed to bear weight of solar panels"]
["EL  3","Energy modeling to confirm home is designed to be net-zero or net-positive post-occupancy with properly sized solar panels"]
["ENERGY EFFICIENT HVAC SYSTEMS "]
["ES  1","Size and select all HVAC equipment in accordance with ACCA Manuals J and S"]
["ES  2 ","Heating equipment efficiency meets EarthCraft requirements (details below):"]
[null," • ","Ducted furnace(s) and/or boiler(s) ≥95% AFUE, sealed combustion"]
[null," • ","Ducted heat pump(s) ≥9 HSPF/≥7.65 HSPF2"]
[null," • ","Ductless system ≥10 HSPF/≥9 HSPF2"]
["ES  3","Cooling equipment efficiency meets EarthCraft requirements (details below):"]
[null," • ","Ducted split system ≥16 SEER/≥15.2 SEER2"]
[null," • ","Ductless system ≥19 SEER(SEER2)"]
[null," • ","Ducted package unit ≥12.5 EER/≥11.86 EER2"]
[null," • ","Ducted geothermal heat pump(s):"]
[null,null," • ","Closed loop water-to-air: ≥17.1 EER/≥16.3 EER2; 3.6 COP"]
[null,null," • ","Open loop water-to-air: ≥ 21.1 EER/≥20.1 EER2; 4.1 COP"]
[null,null," • ","Closed loop water-to-water: ≥16.1 EER/≥15.3 EER2; 3.1 COP"]
[null,null," • ","Open loop water-to-water: ≥20.1 EER/≥19.1 EER2; 3.5 COP"]
["ES  4","Programmable thermostat with adaptive recovery capability                                "]
["ES  5","No HVAC equipment or ductwork located in garage"]
["ES  6","If designed, HVAC ductwork meets EarthCraft requirements for installation, insulation and air sealing (details below):"]
[null," • ","Air seal ductwork to EarthCraft requirements using mastic/mastic tape:"]
[null,null," • ","Plenum seams"]
[null,null," • ","Collars to plenum"]
[null,null," • ","Collars and boots to flex liner"]
[null,null," • ","Seams in boots and wyes"]
[null,null," • ","All flex liner to wye connections"]
[null,null," • ","Air handler unit seams"]
[null," • ","Insulate ductwork to standards set by EarthCraft (details below):"]
[null,null," • ","Unconditioned spaces: ≥R-8"]
[null,null," • ","All other spaces: ≥R-6"]
[null," • ","HVAC ductwork installation meets EarthCraft requirements (details below):"]
[null,null," • ","Fully duct all supply and return ducts"]
[null,null," • ","No ducts in exterior walls or vaulted ceilings"]
[null,null," • ","Install rigid ducts, or pull all flex ducts with no pinches and ≥1\" support strapping at intervals ≤5'"]
[null,null," • ","Ducts suspended above attic floor trusses to allow for full depth of attic floor insulation"]
[null," • ","HVAC system and ductwork is dry and clean (details below):"]
[null,null," • ","Protect all ceiling/floor registers until construction is complete"]
[null,null," • ","Protect HVAC fan until construction is complete"]
[null,null," • ","Pleated filter installed during construction"]
["ES  7","HVAC system filter(s) (details below):"]
[null," • ","Filter easily accessible for occupant"]
[null," • ","Access panel includes gasket and fits snuggly"]
[null," • ","At final all filters ≥ MERV 8"]
["ES  8","If applicable, test duct leakage based on floor area served (details below):"]
[null," • ","Leakage to outside ≤3% (not required if ducts are located 100% within conditioned space)"]
[null," • ","Total leakage ≤4% at final"]
["PERF  3","Heating and cooling equipment meets or exceeds Department of Energy standards"]
[null," • ","Heating equipment efficiency meets or exceeds code requirements; gas furnaces must be sealed combustion"]
[null," • ","Cooling equipment efficiency meets or exceeds code requirements"]
["CMFRT  1","If designed, improved duct design (details below):"]
[null," • ","Install ducts per ACCA Manual D duct design"]
[null," • ","Measure and balance airflow per ACCA Manual B"]
[null," • ","Verify supply and return duct static pressure"]
["CMFRT  2","HVAC system (equipment and ductwork) installed 100% within conditioned space"]
["CMFRT  3","Verify proper refrigerant charge and total system air flow within 20% of design air flow"]
["CMFRT  4","If ducted system installed, measure pressure differential ≤3 Pa in all rooms"]
["INDOOR AIR QUALITY "]
["IAQ  1","Provide whole building and local exhaust ventilation based on ASHRAE 62.2-2019 Ventilation and Acceptable Indoor Air Quality in Residential Buildings (specific requirements listed below):"]
[null," • ","Include whole building ventilation sizing in Manual J calculations"]
[null," • ","Install labeled, accessible whole building ventilation controls"]
[null," • ","Verify whole building ventilation airflow CFM within +/-10% of rated airflow"]
[null," • ","Whole building ventilation system (choose one):"]
[null,null," • ","Balanced system"]
[null,null," • ","Supply system with ≥MERV 4 filter prior to outdoor air entering living space or HVAC unit"]
[null,null,null,"If central fan integrated system is used, HVAC system must be equipped with variable speed motor."]
[null," • ","Vent all full bathrooms with ENERGY STAR ≥50 CFM on-demand exhaust fan to exterior"]
[null,null," • ","Bath fans ducted using prescriptive design based on ASHRAE 62.2-2019 or measure airflow CFM within +/-10% of rated airflow"]
[null," • ","Vent all kitchens with ≥100 CFM on-demand range hood ducted to exterior of building"]
[null,null," • ","Range fan ducted using prescriptive design based on ASHRAE 62.2-2019 or measure airflow CFM within +/-10% of rated airflow"]
[null,null,null,"If range hood capable of ≥400 CFM, install make-up air to meet 2021 IRC requirements"]
["IAQ  2","Carbon monoxide detector (one per sleeping area, hard wired with battery back-up)"]
["IAQ  3","No unvented combustion fireplaces, appliances or space heaters"]
["IAQ  4","If installed, fireplace has ducted outdoor air supply with damper"]
["IAQ  5","If in EPA Radon Zone 1, install a passive radon/soil gas vent system to exterior and label clearly "]
["IAQ  6","Low- or no-formaldehyde content (choose minimum of three (3) details below):"]
[null," • ","Subfloor/floor decking"]
[null," • ","Insulation"]
[null," • ","Interior trim"]
[null," • ","Finished floor material"]
[null," • ","All cabinets (kitchen, bathroom(s), laundry, etc.)"]
[null," • ","All countertops (kitchen, bathroom(s), laundry, etc.)"]
["IAQ  7","No-VOC content materials (choose minimum of two (2), details below):"]
[null," • ","Interior paints"]
[null," • ","Interior stains"]
[null," • ","Sealants (caulk, etc.)"]
[null," • ","All carpet"]
[null," • ","All carpet padding"]
[null," • ","Carpet pad adhesive"]
["HLTH  1","Whole building ventilation system designed to meet ASHRAE 62.2-2019 (choose one option below):"]
[null," • ","Energy recovery ventilator (ERV)"]
[null," • ","Whole-house dehumidifying ventilator"]
[null," • ","Central fan integrated system with ≥ MERV 8 filter for outdoor air prior to crossing HVAC heat exchanger/coils. HVAC system must be equipped with electronically commutated motor (ECM). "]
[null," • ","Balanced system with monitoring controls for outdoor air humidity and/or temperature"]
[null," • ","Supply system with monitoring controls for outdoor air humidity and/or temperature and ≥ MERV 6 filter for outdoor air prior to entering conditioned space"]
["HLTH  2","All exhaust fans in full bathrooms designed and installed to activate by humidistat"]
["HLTH  3","Sealed combustion, direct-vent fireplace(s) or no fireplace"]
["HLTH  4","All HVAC systems equipped with a MERV ≥13 pleated filter with minimum 2\" filter slot"]
["HLTH  5","Garage requirements (details below):"]
[null," • ","Air leakage test to confirm complete air barrier between attached garage and living space"]
[null," • ","Control attached garage exhaust fan by motion sensor or timer"]
[null," • ","Detached garage or no garage"]
["HLTH  6","Select a minimum of three (3) options from both IAQ 6 and IAQ 7."]
["PLUMBING & IRRIGATION"]
["PI  1","High efficiency water heater Uniform Energy Factor (UEF) (chart below):"]
[null,"* Gas water heaters must be power vented if installed within conditioned space"]
["PI  2","Heat trap on all storage water heaters"]
["PI  3","Insulate 100% of hot water pipe with ≥R-3 "]
["PI  4","Water pressure ≤60 PSI "]
["PI  5","WaterSense labeled toilets, showerheads, lavatory faucets and accessories (all must comply; details below):"]
[null," • ","Toilets: ≤1.28 gpf"]
[null," • ","Showerheads: ≤1.75 gpm.  Exception: a shower with multiple showerheads must have a total combined flow rating of ≤3.0 gpm"]
[null," • ","Lavatory faucets: ≤1.5 gpm"]
[null," • ","Kitchen faucet: ≤1.5 gpm"]
["PI  6","Irrigation system (details below):"]
[null," • ","Must have weather based controller"]
[null," • ","Does not water hard surfaces such as sidewalks and home foundation"]
["PI  7","All pools or spas must have an appropriate cover"]
["PI  8","Ornamental water features must recirculate water"]
["PERF  4","Water heater efficiency meets or exceeds code requirement; gas water heaters must be separate from living space"]
["PERF  5","Whole-House Water Efficiency Rating ≤65"]
["ENV 7","Advanced irrigation system (details below): "]
[null," • ","Micro-irrigation system (e.g., drip irrigation) with pressure regulator, filter and flush end assemblies"]
[null," • ","Provide weather station or soil moisture sensor on irrigation system"]
["RES  4","All faucets are single-lever or ADA compliant for all sinks, showers and tubs"]
["RES  5","Water leak detection equipment installed on water service line to house"]
["EFFICIENT LIGHTING & APPLIANCES "]
["LA  1","High-efficacy lighting in 100% of all permanent indoor and outdoor fixtures "]
["LA  2","If installed, ENERGY STAR qualified dishwasher(s)"]
["LA  3","If installed, ENERGY STAR qualified refrigerator(s)"]
["LA  4","If installed, ENERGY STAR qualified clothes washer (water factor ≤6.0 gal)"]
["EDUCATION AND OPERATIONS "]
["EO  1","Provide homeowner with project-specific owner's manual"]
["EO  2","EarthCraft House Certified Builder "]
["EO  3","Market EarthCraft House program"]

{"sheet":"HVAC_System","index":3,"n_rows":85,"n_cols":27,"rows_kept":85,"cut":false,"hidden":false,"merged":[[31,6,31,7],[10,6,14,10],[16,1,16,4],[16,6,16,8],[17,1,17,3],[18,1,18,3],[17,6,17,7],[18,6,18,7],[19,6,19,7],[25,6,25,7],[28,1,28,4],[28,6,28,8],[29,1,29,3],[30,1,30,3],[29,6,29,7],[30,6,30,7],[23,6,23,7],[4,6,5,6],[5,1,5,3],[5,7,5,9],[22,1,22,4],[22,6,22,8],[23,1,23,3],[24,1,24,3],[24,6,24,7],[2,1,3,4],[2,6,3,9],[2,10,3,10],[4,7,4,9],[6,1,6,3],[7,1,7,3],[8,1,8,3],[9,1,9,3],[10,1,10,3],[6,6,6,10],[7,6,7,7],[8,6,8,7],[11,1,11,3],[4,1,4,3]]}
[]
[null,null,null,null,null,null,null,null,null,null,null,null,null,null,null,null,"wsf (from ASHRAE 62.2-2019 Appendix B)",null,null,null,"Preparation Table",null,null,null,"Ventilation System Type"]
[null,"Building Information",null,null,null,null,"ASHRAE 62.2-2019 Continuous Airflow Required (cfm):  ",null,null,null,{"$f":"((0.03*E5)+(7.5*(E6+1)))","v":90},null,null,null,null,"State","Weater Station","wsf",null,null,"State","Weather Station",null,null,"Balanced",1,{"$f":"VLOOKUP(E12,Y3:Z4,2,0)","v":0}]
[null,null,null,null,null,null,null,null,null,null,null,null,null,null,null,"Alabama","Mobile, AL",0.42,null,null,{"$f":"_xlfn.UNIQUE(P4:P85)","v":"Alabama"},{"$f":"_xlfn._xlws.FILTER(Q4:Q85, P4:P85=E9)","v":"Savannah, GA"},null,null,"Supply",{"$f":"I9/K3","v":0}]
[null,"Conditioned Floor Area:  ",null,null,{"$f":"Project_Cover_Page!I14","v":2000},null,"Intermittent Fan Run-Time Solver","Rated Fan Capacity (cfm):  ",null,null,null,null,null,null,null,"Alabama","Montgomery, AL",0.39,null,null,"Georgia","Alma-Bacon County, GA"]
[null,"Number of Bedrooms:",null,null,{"$f":"Project_Cover_Page!I18","v":3},null,null,"Adjusted fan run time per hour (min):",null,null,{"$f":"IFERROR((60-(((K5-K3)/K5)*60)),\"\")","v":""},null,null,null,null,"Alabama","Maxwell AFB, AL",0.4,null,null,"North Carolina","Brunswick, GA"]
[null,"Number of Stories:",null,null,{"$f":"Project_Cover_Page!I17","v":2},null,"Infiltration Credit",null,null,null,null,null,null,null,null,"Alabama","Troy, AL",0.34,null,null,"South Carolina","Albany, GA"]
[null,"Building Height:",null,null,18,null,"Single-Point Envelope Leakage Measurement (cfm50):",null,null,"Adjusted Ventilation (cfm):",{"$f":"K3-(AA3*I9)","v":90},null,null,null,null,"Alabama","Dothan, AL",0.41,null,null,"Virginia","Valdosta, GA"]
[null,"State:",null,null,"Georgia",null,"Infiltration Credit (Qinf):",null,{"$f":"0.052*I8*E11*((E8/8.2)^0.4)","v":0},null,null,null,null,null,null,"Alabama","Cairns Field Ft Rucker, AL",0.36,null,null,null,"Macon, GA"]
[null,"Weather Station:",null,null,"Brunswick, GA",null,null,null,null,null,null,null,null,null,null,"Alabama","Birmingham, AL",0.41,null,null,null,"Warner Robins, GA"]
[null,"Weather Station Factor (wsf):",null,null,{"$f":"VLOOKUP(E10,Q4:R85,2,0)","v":0.4},null,"To calculate an infiltration credit, enter the Building Height (length in feet between the lowest and highest above-grade points within the pressure boundary); use the drop-down menus to select the State the project is located in and the closest Weather Station to the project address; idenify if the ventilation system type is Balanced or Supply.  Use a Single-Point Envelope Leakage Measurement to complete the Infiltration Credit calculation.  The Adjusted Ventilation (cfm) is the reduced required continuous ventilation required for the project. All cells that require data entry are shaded green. ",null,null,null,null,null,null,null,null,"Alabama","Auburn-Opelika, AL",0.35,null,null,null,"Augusta, GA"]
[null,"Ventilation System Type:",null,null,"Supply",null,null,null,null,null,null,null,null,null,null,"Alabama","Gadsen, AL",0.38,null,null,null,"Atlanta/Hartsfield Airport, GA"]
[null,null,null,null,null,null,null,null,null,null,null,null,null,null,null,"Alabama","Tuscaloosa, AL",0.39,null,null,null,"Fulton County, GA"]
[null,null,null,null,null,null,null,null,null,null,null,null,null,null,null,"Alabama","Anniston, AL",0.37,null,null,null,"DeKalb-Peachtree, GA"]
[null,null,null,null,null,null,null,null,null,null,null,null,null,null,null,"Alabama","Hunstville, AL",0.45,null,null,null,"Fort Benning, GA"]
[null,null,null,null,null,null,null,null,null,null,null,null,null,null,null,"Alabama","Muscle Shoals, AL",0.39,null,null,null,"Columbus, GA"]
[null,"Manual S Results: System One",null,null,null,null,"Manual J Results: System One",null,null,"Equipment Specified","Difference",null,null,null,null,"Georgia","Savannah, GA",0.4,null,null,null,"Marietta, GA"]
[null,"Heating Capacity (BTU):  ",null,null,null,null," Heating Load (BTU):  ",null,null,null,{"$f":"IF(ISERROR(((J18-I18)/J18)),\"\",((J18-I18)/J18))","v":""},null,null,null,null,"Georgia","Alma-Bacon County, GA",0.37,null,null,null,"Athens, GA"]
[null,"Cooling Capacity (BTU):  ",null,null,null,null," Cooling Sensible Load (BTU):  ",null,null,null,{"$f":"IF(ISERROR(((J19-I19)/J19)),\"\",((J19-I19)/J19))","v":""},null,null,null,null,"Georgia","Brunswick, GA",0.4,null,null,null,"Rome, GA"]
[null,null,null,null,null,null,"Cooling Latent Load (BTU):  ",null,null,null,{"$f":"IF(ISERROR(((J20-I20)/J20)),\"\",((J20-I20)/J20))","v":""},null,null,null,null,"Georgia","Albany, GA",0.38,null,null,null,"Hunter Air Force Base, GA"]
[null,null,null,null,null,null,null,null,null,null,null,null,null,null,null,"Georgia","Valdosta, GA",0.36]
[null,null,null,null,null,null,null,null,null,null,null,null,null,null,null,"Georgia","Macon, GA",0.41]
[null,"Manual S Results: System Two",null,null,null,null,"Manual J Results: System Two",null,null,"Equipment Specified","Difference",null,null,null,null,"Georgia","Warner Robins, GA",0.39]
[null,"Heating Capacity (BTU):  ",null,null,null,null," Heating Load (BTU):  ",null,null,null,{"$f":"IF(ISERROR(((J24-I24)/J24)),\"\",((J24-I24)/J24))","v":""},null,null,null,null,"Georgia","Augusta, GA",0.41]
[null,"Cooling Capacity (BTU):  ",null,null,null,null," Cooling Sensible Load (BTU):  ",null,null,null,{"$f":"IF(ISERROR(((J25-I25)/J25)),\"\",((J25-I25)/J25))","v":""},null,null,null,null,"Georgia","Atlanta/Hartsfield Airport, GA",0.46]
[null,null,null,null,null,null,"Cooling Latent Load (BTU):  ",null,null,null,{"$f":"IF(ISERROR(((J26-I26)/J26)),\"\",((J26-I26)/J26))","v":""},null,null,null,null,"Georgia","Fulton County, GA",0.37]
[null,null,null,null,null,null,null,null,null,null,null,null,null,null,null,"Georgia","DeKalb-Peachtree, GA",0.39]
[null,null,null,null,null,null,null,null,null,null,null,null,null,null,null,"Georgia","Fort Benning, GA",0.35]
[null,"Manual S Results: System Three",null,null,null,null,"Manual J Results: System Three",null,null,"Equipment Specified","Difference",null,null,null,null,"Georgia","Columbus, GA",0.39]
[null,"Heating Capacity (BTU):  ",null,null,null,null," Heating Load (BTU):  ",null,null,null,{"$f":"IF(ISERROR(((J30-I30)/J30)),\"\",((J30-I30)/J30))","v":""},null,null,null,null,"Georgia","Marietta, GA",0.4]
[null,"Cooling Capacity (BTU):  ",null,null,null,null," Cooling Sensible Load (BTU):  ",null,null,null,{"$f":"IF(ISERROR(((J31-I31)/J31)),\"\",((J31-I31)/J31))","v":""},null,null,null,null,"Georgia","Athens, GA",0.4]
[null,null,null,null,null,null,"Cooling Latent Load (BTU):  ",null,null,null,{"$f":"IF(ISERROR(((J32-I32)/J32)),\"\",((J32-I32)/J32))","v":""},null,null,null,null,"Georgia","Rome, GA",0.38]
[null,null,null,null,null,null,null,null,null,null,null,null,null,null,null,"Georgia","Hunter Air Force Base, GA",0.4]
[null,null,null,null,null,null,null,null,null,null,null,null,null,null,null,"North Carolina","Wilmington, NC",0.43]
[null,null,null,null,null,null,null,null,null,null,null,null,null,null,null,"North Carolina","Fayetteville, NC",0.44]
[null,null,null,null,null,null,null,null,null,null,null,null,null,null,null,"North Carolina","Cape Hatteras, NC",0.49]
[null,null,null,null,null,null,null,null,null,null,null,null,null,null,null,"North Carolina","Dare County, NC",0.5]
[null,null,null,null,null,null,null,null,null,null,null,null,null,null,null,"North Carolina","Raleigh-Durham, NC",0.43]
[null,null,null,null,null,null,null,null,null,null,null,null,null,null,null,"North Carolina","Pitt-Greenville, NC",0.4]
[null,null,null,null,null,null,null,null,null,null,null,null,null,null,null,"North Carolina","Goldsboro-Seymore-Johnson, NC",0.44]
[null,null,null,null,null,null,null,null,null,null,null,null,null,null,null,"North Carolina","Kinston Stallings Air Force Base, NC",0.44]
[null,null,null,null,null,null,null,null,null,null,null,null,null,null,null,"North Carolina","Rocky Mount Wilson, NC",0.42]
[null,null,null,null,null,null,null,null,null,null,null,null,null,null,null,"North Carolina","Jacksonville, NC",0.43]
[null,null,null,null,null,null,null,null,null,null,null,null,null,null,null,"North Carolina","Cherry Point, NC",0.46]
[null,null,null,null,null,null,null,null,null,null,null,null,null,null,null,"North Carolina","New Bern-Craven Co., NC",0.41]
[null,null,null,null,null,null,null,null,null,null,null,null,null,null,null,"North Carolina","Charlotte, NC",0.43]
[null,null,null,null,null,null,null,null,null,null,null,null,null,null,null,"North Carolina","Southern Pines, NC",0.41]
[null,null,null,null,null,null,null,null,null,null,null,null,null,null,null,"North Carolina","Hickory, NC",0.41]
[null,null,null,null,null,null,null,null,null,null,null,null,null,null,null,"North Carolina","Asheville, NC",0.47]
[null,null,null,null,null,null,null,null,null,null,null,null,null,null,null,"North Carolina","Greensboro, NC",0.43]
[null,null,null,null,null,null,null,null,null,null,null,null,null,null,null,"North Carolina","Winston Salem, NC",0.39]
[null,null,null,null,null,null,null,null,null,null,null,null,null,null,null,"North Carolina","Fort Bragg, NC",0.38]
[null,null,null,null,null,null,null,null,null,null,null,null,null,null,null,"North Carolina","Elizabeth City, NC",0.5]
[null,null,null,null,null,null,null,null,null,null,null,null,null,null,null,"South Carolina","Charleston, SC",0.43]
[null,null,null,null,null,null,null,null,null,null,null,null,null,null,null,"South Carolina","Beaufort, SC",0.39]
[null,null,null,null,null,null,null,null,null,null,null,null,null,null,null,"South Carolina","Columbia, SC",0.41]
[null,null,null,null,null,null,null,null,null,null,null,null,null,null,null,"South Carolina","Florence, SC",0.41]
[null,null,null,null,null,null,null,null,null,null,null,null,null,null,null,"South Carolina","Greenville, SC",0.42]
[null,null,null,null,null,null,null,null,null,null,null,null,null,null,null,"South Carolina","Spartanburg, SC",0.43]
[null,null,null,null,null,null,null,null,null,null,null,null,null,null,null,"South Carolina","Anderson County, SC",0.44]
[null,null,null,null,null,null,null,null,null,null,null,null,null,null,null,"South Carolina","Sumter, SC",0.43]
[null,null,null,null,null,null,null,null,null,null,null,null,null,null,null,"South Carolina","Myrtle Beach, SC",0.47]
[null,null,null,null,null,null,null,null,null,null,null,null,null,null,null,"South Carolina","North Myrtle Beach, SC",0.43]
[null,null,null,null,null,null,null,null,null,null,null,null,null,null,null,"Virginia","Oceana, VA",0.49]
[null,null,null,null,null,null,null,null,null,null,null,null,null,null,null,"Virginia","Norfolk, VA",0.55000000000000004]
[null,null,null,null,null,null,null,null,null,null,null,null,null,null,null,"Virginia","Richmond, VA",0.48]
[null,null,null,null,null,null,null,null,null,null,null,null,null,null,null,"Virginia","Dinwiddie County, VA",0.4]
[null,null,null,null,null,null,null,null,null,null,null,null,null,null,null,"Virginia","Charlottesville, VA",0.41]
[null,null,null,null,null,null,null,null,null,null,null,null,null,null,null,"Virginia","Farmville, VA",0.4]
[null,null,null,null,null,null,null,null,null,null,null,null,null,null,null,"Virginia","Melfa/Accomack, VA",0.45]
[null,null,null,null,null,null,null,null,null,null,null,null,null,null,null,"Virginia","Washington DC-Dulles, VA",0.47]
[null,null,null,null,null,null,null,null,null,null,null,null,null,null,null,"Virginia","Shannon, VA",0.43]
[null,null,null,null,null,null,null,null,null,null,null,null,null,null,null,"Virginia","Quantico, VA",0.45]
[null,null,null,null,null,null,null,null,null,null,null,null,null,null,null,"Virginia","Manassas, VA",0.45]
[null,null,null,null,null,null,null,null,null,null,null,null,null,null,null,"Virginia","Davison, VA",0.46]
[null,null,null,null,null,null,null,null,null,null,null,null,null,null,null,"Virginia","Washington DC-Reagan, VA",0.51]
[null,null,null,null,null,null,null,null,null,null,null,null,null,null,null,"Virginia","Winchester, VA",0.45]
[null,null,null,null,null,null,null,null,null,null,null,null,null,null,null,"Virginia","Leesburg/Godfrey, VA",0.44]
[null,null,null,null,null,null,null,null,null,null,null,null,null,null,null,"Virginia","Marion/Wytheville, VA",0.45]
[null,null,null,null,null,null,null,null,null,null,null,null,null,null,null,"Virginia","Abingdon, VA",0.43]
[null,null,null,null,null,null,null,null,null,null,null,null,null,null,null,"Virginia","Lynchburg Regional, VA",0.44]
[null,null,null,null,null,null,null,null,null,null,null,null,null,null,null,"Virginia","Staunton/Shenandoah, VA",0.43]
[null,null,null,null,null,null,null,null,null,null,null,null,null,null,null,"Virginia","Danville, VA",0.43]
[null,null,null,null,null,null,null,null,null,null,null,null,null,null,null,"Virginia","Hillsville, VA",0.48]
[null,null,null,null,null,null,null,null,null,null,null,null,null,null,null,"Virginia","Roanoke Regional AP, VA",0.46]

{"sheet":"Diagnostic_Test_Results","index":4,"n_rows":42,"n_cols":16,"rows_kept":42,"cut":false,"hidden":false,"merged":[[54,1,54,2],[55,1,55,2],[48,1,48,2],[49,1,49,2],[50,1,50,2],[52,1,52,2],[51,1,51,2],[53,1,53,2],[28,7,28,8],[28,10,28,11],[28,13,28,14],[47,1,47,2],[36,1,36,2],[36,4,36,5],[40,1,40,3],[41,1,41,2],[42,1,42,2],[43,1,43,2],[44,1,44,2],[45,1,45,2],[46,1,46,2],[34,1,35,2],[34,3,35,3],[34,4,34,5],[35,4,35,5],[26,1,26,2],[26,4,26,5],[28,1,28,2],[28,4,28,5],[26,7,26,8],[26,10,26,11],[26,13,26,14],[27,1,27,2],[27,4,27,5],[27,7,27,8],[27,10,27,11],[27,13,27,14],[24,1,24,2],[24,4,24,5],[24,7,24,8],[24,10,24,11],[24,13,24,14],[25,1,25,2],[25,4,25,5],[25,7,25,8],[25,10,25,11],[25,13,25,14],[21,1,21,2],[21,4,21,5],[21,7,21,8],[21,10,21,11],[21,13,21,14],[22,1,22,2],[22,4,22,5],[22,7,22,8],[22,10,22,11],[22,13,22,14],[14,1,14,2],[14,4,14,5],[14,7,14,8],[1,1,1,4],[2,1,2,4],[3,1,3,4],[12,1,12,2],[12,4,12,5],[12,7,12,8],[13,1,13,2],[13,4,13,5],[13,7,13,8],[10,1,10,2],[10,4,10,5],[10,7,10,8],[11,1,11,2],[11,4,11,5],[11,7,11,8],[7,1,7,9],[8,1,8,3],[8,4,8,6],[8,7,8,9],[9,1,9,2],[9,4,9,5],[9,7,9,8]]}
[]
[null,"Total Conditioned Floor Area (ft2):",null,null,null,{"$f":"IF(ISERROR(Project_Cover_Page!I14),\"\",Project_Cover_Page!I14)","v":2000}]
[null,"Volume:",null,null,null,{"$f":"IF(ISERROR(Project_Cover_Page!I15),\"\",Project_Cover_Page!I15)","v":20000}]
[null,"Square Footage of Building Envelope (ft2):",null,null,null,{"$f":"IF(ISERROR(Project_Cover_Page!I16),\"\",Project_Cover_Page!I16)","v":0}]
[]
[]
[]
[null,"Building Infiltration"]
[null,"Test 1",null,null,"Re-test",null,null,"Re-test"]
[null,"Date of Inspection:",null,null,"Date of Inspection:",null,null,"Date of Inspection:"]
[null,"Induced Pressure Difference WRT Outdoors:  ",null,50,"Induced Pressure Difference WRT Outdoors:  ",null,50,"Induced Pressure Difference WRT Outdoors:  ",null,50]
[null,"Ring:  ",null,null,"Ring:  ",null,null,"Ring:  "]
[null,"CFM50:  ",null,null,"CFM50:  ",null,null,"CFM50:  "]
[null,"ACH50:  ",null,{"$f":"IF(ISERROR(((D13*60)/F3)),\"\",((D13*60)/F3))","v":0},"ACH50:  ",null,{"$f":"IF(ISERROR(((G13*60)/F3)),\"\",((G13*60)/F3))","v":0},"ACH50:  ",null,{"$f":"IF(ISERROR(((J13*60)/F3)),\"\",((J13*60)/F3))","v":0}]
[null,"ELR:  ",null,{"$f":"IF(ISERROR((D13/F4)),\"\",((D13/F4)))","v":""},"ELR:  ",null,{"$f":"IF(ISERROR((G13/F4)),\"\",((G13/F4)))","v":""},"ELR:  ",null,{"$f":"IF(ISERROR((J13/F4)),\"\",((J13/F4)))","v":""}]
[]
[]
[]
[null,null,null,null,null,null,null,null,"HVAC Duct Leakage"]
[null,null,"Date of Inspection:",null,null,"Date of Inspection:",null,null,"Date of Inspection:",null,null,"Date of Inspection:",null,null,"Date of Inspection:"]
[null,null,"Floor Area Served:",null,null,"Floor Area Served:",null,null,"Floor Area Served:",null,null,"Floor Area Served:",null,null,"Floor Area Served:"]
[null,"Total Leakage Test Ring",null,null,"Total Leakage Test Ring",null,null,"Total Leakage Test Ring",null,null,"Total Leakage Test Ring",null,null,"Total Leakage Test Ring"]
[null,"Induced Duct Pressure:  ",null,25,"Induced Duct Pressure:  ",null,25,"Induced Duct Pressure:  ",null,25,"Induced Duct Pressure:  ",null,25,"Induced Duct Pressure:  ",null,25]
[null,null,"Total Leakage CFM25:",null,null,"Total Leakage CFM25:",null,null,"Total Leakage CFM25:",null,null,"Total Leakage CFM25:",null,null,"Total Leakage CFM25:"]
[null,"Percentage Total Leakage:",null,{"$f":"IF(ISERROR(D24/D21),\"\",(D24/D21))","v":""},"Percentage Total Leakage:",null,{"$f":"IF(ISERROR(G24/G21),\"\",G24/G21)","v":""},"Percentage Total Leakage:",null,{"$f":"IF(ISERROR(J24/J21),\"\",J24/J21)","v":""},"Percentage Total Leakage:",null,{"$f":"IF(ISERROR(M24/M21),\"\",M24/M21)","v":""},"Percentage Total Leakage:",null,{"$f":"IF(ISERROR(P24/P21),\"\",P24/P21)","v":""}]
[null,"Leakage to Outside Test Ring:",null,null,"Leakage to Outside Test Ring:",null,null,"Leakage to Outside Test Ring:",null,null,"Leakage to Outside Test Ring:",null,null,"Leakage to Outside Test Ring:"]
[null,"Induced Duct Pressure:  ",null,25,"Induced Duct Pressure:  ",null,25,"Induced Duct Pressure:  ",null,25,"Induced Duct Pressure:  ",null,25,"Induced Duct Pressure:  ",null,25]
[null,"Leakage to Outside CFM25:",null,null,"Leakage to Outside CFM25:",null,null,"Leakage to Outside CFM25:",null,null,"Leakage to Outside CFM25:",null,null,"Leakage to Outside CFM25:"]
[null,"Percentage Leakage to Outside:",null,{"$f":"IF(ISERROR(D28/D21),\"\",D28/D21)","v":""},"Percentage Leakage to Outside:",null,{"$f":"IF(ISERROR(G28/G21),\"\",G28/G21)","v":""},"Percentage Leakage to Outside:",null,{"$f":"IF(ISERROR(J28/J21),\"\",J28/J21)","v":""},"Percentage Leakage to Outside:",null,{"$f":"IF(ISERROR(M28/M21),\"\",M28/M21)","v":""},"Percentage Leakage to Outside:",null,{"$f":"IF(ISERROR(P28/P21),\"\",P28/P21)","v":""}]
[]
[]
[]
[null,null,null,null,null,null,"Ventilation Measurements"]
[null,null,null,null,"Minimum Whole Building Ventilation (cfm):",null,null,null,"Location:",null,null,"Exhaust CFM:",null,null,"Kitchen"]
[null,"Designed Whole Building Ventilation (cfm):",null,null,"Measured Whole Building cfm:",null,null,null,"Location:",null,null,"Exhaust CFM:",null,null,"Bathroom"]
[null,null,null,null,"Percent Difference:",null,{"$f":"IF(ISERROR(((G35-D35)/G35)),\"\",((G35-D35)/G35))","v":""},null,"Location:",null,null,"Exhaust CFM:"]
[null,"Designed Runtime (min):",null,null,"Verified Runtime (min):",null,null,null,"Location:",null,null,"Exhaust CFM:"]
[null,null,null,null,null,"Percent Difference:",{"$f":"IFERROR(((G37-D37)/G37),\"\")","v":""},null,"Location:",null,null,"Exhaust CFM:"]
[]
[]
[null,"Pressure Differentials"]
[null,"Room",null,"Pressure (Pa)"]